[Event "Titled Tuesday Blitz August 1 Early 2023"]
[White "Rasulov, Vugar"]
[Black "Guz, Ari"]
[WhiteFideId "13402390"]
[BlackFideId "2825759"]
[WhiteElo "2847"]
[BlackElo "2580"]
[Result "1-0"]
[Round "4"]
[TimeControl "180+1"]
[Date "2023.08.01"]
[WhiteClock "0:01:06"]
[BlackClock "0:00:00"]
[Board "48"]

1. a3 {[%clk 0:03:00]}  a6 {[%clk 0:02:57]} 2. b4 {[%clk 0:03:01]}  b5 {[%clk 0:02:57]} 3. Bb2 {[%clk 0:03:01]}  Bb7 {[%clk 0:02:57]} 4. Nf3 {[%clk 0:03:01]}  Nf6 {[%clk 0:02:57]} 5. g3 {[%clk 0:03:02]}  g6 {[%clk 0:02:55]} 6. Bg2 {[%clk 0:03:02]}  Bg7 {[%clk 0:02:56]} 7. O-O {[%clk 0:03:03]}  O-O {[%clk 0:02:55]} 8. d3 {[%clk 0:03:03]}  d6 {[%clk 0:02:55]} 9. c4 {[%clk 0:03:04]}  Nbd7 {[%clk 0:02:51]} 10. Nc3 {[%clk 0:03:03]}  bxc4 {[%clk 0:02:42]} 11. dxc4 {[%clk 0:03:04]}  c5 {[%clk 0:02:42]} 12. b5 {[%clk 0:03:02]}  Nb6 {[%clk 0:02:41]} 13. Qd3 {[%clk 0:02:55]}  axb5 {[%clk 0:02:06]} 14. cxb5 {[%clk 0:02:52]}  d5 {[%clk 0:02:06]} 15. Ne5 {[%clk 0:02:44]}  Qc7 {[%clk 0:02:02]} 16. f4 {[%clk 0:02:14]}  d4 {[%clk 0:01:45]} 17. Ne4 {[%clk 0:02:09]}  Na4 {[%clk 0:01:39]} 18. Rab1 {[%clk 0:01:59]}  c4 {[%clk 0:00:37]} 19. Qxc4 {[%clk 0:01:52]}  Qxc4 {[%clk 0:00:29]} 20. Nxf6+ {[%clk 0:01:53]}  exf6 {[%clk 0:00:29]} 21. Nxc4 {[%clk 0:01:53]}  Bxg2 {[%clk 0:00:28]} 22. Kxg2 {[%clk 0:01:54]}  Rfc8 {[%clk 0:00:27]} 23. Rfc1 {[%clk 0:01:50]}  Nxb2 {[%clk 0:00:20]} 24. Rxb2 {[%clk 0:01:46]}  Ra4 {[%clk 0:00:16]} 25. b6 {[%clk 0:01:42]}  Rb8 {[%clk 0:00:16]} 26. b7 {[%clk 0:01:37]}  Bf8 {[%clk 0:00:17]} 27. Rb5 {[%clk 0:01:21]}  Ra7 {[%clk 0:00:16]} 28. Na5 {[%clk 0:01:20]}  Rxa5 {[%clk 0:00:11]} 29. Rxa5 {[%clk 0:01:21]}  Rxb7 {[%clk 0:00:08]} 30. a4 {[%clk 0:01:19]}  Rb2 {[%clk 0:00:07]} 31. Kf1 {[%clk 0:01:20]}  h5 {[%clk 0:00:05]} 32. Rb5 {[%clk 0:01:20]}  Ra2 {[%clk 0:00:04]} 33. a5 {[%clk 0:01:21]}  Kg7 {[%clk 0:00:04]} 34. Rd1 {[%clk 0:01:19]}  h4 {[%clk 0:00:04]} 35. gxh4 {[%clk 0:01:19]}  Bd6 {[%clk 0:00:02]} 36. Rxd4 {[%clk 0:01:19]}  Bc7 {[%clk 0:00:02]} 37. h5 {[%clk 0:01:17]}  Bxa5 {[%clk 0:00:02]} 38. hxg6 {[%clk 0:01:17]}  Kxg6 {[%clk 0:00:03]} 39. Rd3 {[%clk 0:01:08]}  Bc7 {[%clk 0:00:01]} 40. Rg3+ {[%clk 0:01:08]}  Kh6 {[%clk 0:00:00]} 41. Rg4 {[%clk 0:01:06]} 1-0


[Site "https://www.chess.com"]

[Event "Titled Tuesday Blitz August 1 Early 2023"]
[White "Rustemov, Alexander"]
[Black "Saya, Ethan"]
[WhiteFideId "4119002"]
[BlackFideId "26095181"]
[WhiteElo "2833"]
[BlackElo "2578"]
[Result "1-0"]
[Round "4"]
[TimeControl "180+1"]
[Date "2023.08.01"]
[WhiteClock "0:00:20"]
[BlackClock "0:00:00"]
[Board "51"]

1. d4 {[%clk 0:03:00]}  d5 {[%clk 0:02:55]} 2. c4 {[%clk 0:03:01]}  c6 {[%clk 0:02:56]} 3. Nc3 {[%clk 0:03:01]}  Nf6 {[%clk 0:02:56]} 4. e3 {[%clk 0:03:01]}  e6 {[%clk 0:02:50]} 5. Nf3 {[%clk 0:03:02]}  Nbd7 {[%clk 0:02:49]} 6. Qc2 {[%clk 0:03:02]}  Bd6 {[%clk 0:02:48]} 7. Bd2 {[%clk 0:03:02]}  O-O {[%clk 0:02:29]} 8. O-O-O {[%clk 0:03:03]}  a6 {[%clk 0:02:13]} 9. e4 {[%clk 0:03:02]}  dxe4 {[%clk 0:02:05]} 10. Nxe4 {[%clk 0:03:03]}  Nxe4 {[%clk 0:02:05]} 11. Qxe4 {[%clk 0:03:04]}  Nf6 {[%clk 0:01:56]} 12. Qh4 {[%clk 0:03:03]}  b5 {[%clk 0:01:55]} 13. c5 {[%clk 0:03:02]}  Be7 {[%clk 0:01:55]} 14. Bd3 {[%clk 0:03:02]}  Qd5 {[%clk 0:01:33]} 15. Kb1 {[%clk 0:02:54]}  Qh5 {[%clk 0:01:32]} 16. Bg5 {[%clk 0:02:39]}  Qxh4 {[%clk 0:01:29]} 17. Bxh4 {[%clk 0:02:37]}  Bb7 {[%clk 0:01:23]} 18. Ne5 {[%clk 0:02:33]}  Rad8 {[%clk 0:01:19]} 19. Be2 {[%clk 0:02:29]}  Rfe8 {[%clk 0:01:15]} 20. Bf3 {[%clk 0:02:26]}  Nd5 {[%clk 0:01:15]} 21. Bxe7 {[%clk 0:02:21]}  Rxe7 {[%clk 0:01:11]} 22. Rhe1 {[%clk 0:02:17]}  f6 {[%clk 0:01:07]} 23. Ng4 {[%clk 0:01:54]}  Kf7 {[%clk 0:01:03]} 24. Ne3 {[%clk 0:01:52]}  Bc8 {[%clk 0:00:57]} 25. a3 {[%clk 0:01:45]}  a5 {[%clk 0:00:54]} 26. Kc2 {[%clk 0:01:43]}  Rde8 {[%clk 0:00:46]} 27. g3 {[%clk 0:01:41]}  Bd7 {[%clk 0:00:45]} 28. Rd2 {[%clk 0:01:26]}  Rb8 {[%clk 0:00:43]} 29. Rde2 {[%clk 0:01:23]}  Ree8 {[%clk 0:00:40]} 30. Bh5+ {[%clk 0:01:01]}  g6 {[%clk 0:00:39]} 31. Bf3 {[%clk 0:01:01]}  a4 {[%clk 0:00:38]} 32. Bxd5 {[%clk 0:00:54]}  exd5 {[%clk 0:00:37]} 33. Kc3 {[%clk 0:00:54]}  Re7 {[%clk 0:00:30]} 34. Nc2 {[%clk 0:00:54]}  Rxe2 {[%clk 0:00:25]} 35. Rxe2 {[%clk 0:00:54]}  h5 {[%clk 0:00:26]} 36. Kb4 {[%clk 0:00:46]}  Ra8 {[%clk 0:00:24]} 37. Ne3 {[%clk 0:00:39]}  g5 {[%clk 0:00:24]} 38. f3 {[%clk 0:00:37]}  Rh8 {[%clk 0:00:10]} 39. Ka5 {[%clk 0:00:36]}  g4 {[%clk 0:00:11]} 40. fxg4 {[%clk 0:00:34]}  hxg4 {[%clk 0:00:10]} 41. Kb6 {[%clk 0:00:33]}  f5 {[%clk 0:00:08]} 42. Kc7 {[%clk 0:00:32]}  Be6 {[%clk 0:00:05]} 43. Kxc6 {[%clk 0:00:29]}  Rc8+ {[%clk 0:00:06]} 44. Kxb5 {[%clk 0:00:27]}  Rb8+ {[%clk 0:00:03]} 45. Kc6 {[%clk 0:00:25]}  Rb3 {[%clk 0:00:02]} 46. Kd6 {[%clk 0:00:23]}  Rb8 {[%clk 0:00:01]} 47. c6 {[%clk 0:00:23]}  Rd8+ {[%clk 0:00:01]} 48. Kc5 {[%clk 0:00:22]}  Rc8 {[%clk 0:00:02]} 49. Nxd5 {[%clk 0:00:22]}  Rd8 {[%clk 0:00:02]} 50. Nf4 {[%clk 0:00:21]}  Bc8 {[%clk 0:00:00]} 51. d5 {[%clk 0:00:20]} 1-0


[Site "https://www.chess.com"]

[Event "Titled Tuesday Blitz August 1 Early 2023"]
[White "Harvey, Marcus R"]
[Black "Ambartsumova, Karina"]
[WhiteFideId "400092"]
[BlackFideId "4166299"]
[WhiteElo "2798"]
[BlackElo "2573"]
[Result "1-0"]
[Round "4"]
[TimeControl "180+1"]
[Date "2023.08.01"]
[WhiteClock "0:00:09"]
[BlackClock "0:00:00"]
[Board "53"]

1. d4 {[%clk 0:02:15]}  Nf6 {[%clk 0:02:57]} 2. c4 {[%clk 0:02:15]}  d6 {[%clk 0:02:57]} 3. Nc3 {[%clk 0:02:15]}  e5 {[%clk 0:02:57]} 4. Nf3 {[%clk 0:02:15]}  e4 {[%clk 0:02:57]} 5. Ng5 {[%clk 0:02:14]}  Qe7 {[%clk 0:02:57]} 6. g3 {[%clk 0:02:13]}  c6 {[%clk 0:02:51]} 7. Bg2 {[%clk 0:02:10]}  Bf5 {[%clk 0:02:51]} 8. O-O {[%clk 0:02:07]}  h6 {[%clk 0:02:42]} 9. Nh3 {[%clk 0:02:07]}  g5 {[%clk 0:02:36]} 10. f3 {[%clk 0:02:07]}  Bg7 {[%clk 0:02:32]} 11. Nf2 {[%clk 0:02:03]}  e3 {[%clk 0:02:21]} 12. Nfe4 {[%clk 0:02:03]}  d5 {[%clk 0:02:15]} 13. Nxf6+ {[%clk 0:02:03]}  Bxf6 {[%clk 0:02:16]} 14. cxd5 {[%clk 0:02:03]}  O-O {[%clk 0:02:13]} 15. f4 {[%clk 0:01:59]}  g4 {[%clk 0:02:09]} 16. d6 {[%clk 0:01:38]}  Qxd6 {[%clk 0:01:57]} 17. Bxe3 {[%clk 0:01:38]}  Rd8 {[%clk 0:01:51]} 18. Be4 {[%clk 0:01:28]}  Bxd4 {[%clk 0:01:19]} 19. Bxd4 {[%clk 0:01:26]}  Bxe4 {[%clk 0:01:19]} 20. Nxe4 {[%clk 0:01:26]}  Qxd4+ {[%clk 0:01:19]} 21. Qxd4 {[%clk 0:01:27]}  Rxd4 {[%clk 0:01:20]} 22. Nf6+ {[%clk 0:01:27]}  Kg7 {[%clk 0:01:20]} 23. Nxg4 {[%clk 0:01:28]}  Na6 {[%clk 0:01:14]} 24. e3 {[%clk 0:01:24]}  Rd2 {[%clk 0:01:12]} 25. Rf2 {[%clk 0:01:25]}  Rad8 {[%clk 0:01:13]} 26. Re1 {[%clk 0:01:25]}  Nc5 {[%clk 0:01:08]} 27. Ree2 {[%clk 0:01:15]}  Rd1+ {[%clk 0:01:03]} 28. Rf1 {[%clk 0:01:14]}  R1d2 {[%clk 0:00:47]} 29. Rfe1 {[%clk 0:01:05]}  Na4 {[%clk 0:00:46]} 30. b3 {[%clk 0:00:57]}  Nc3 {[%clk 0:00:47]} 31. Rxd2 {[%clk 0:00:56]}  Rxd2 {[%clk 0:00:47]} 32. a4 {[%clk 0:00:38]}  Rb2 {[%clk 0:00:47]} 33. e4 {[%clk 0:00:29]}  Rxb3 {[%clk 0:00:47]} 34. Ne3 {[%clk 0:00:27]}  Nxe4 {[%clk 0:00:32]} 35. Nf5+ {[%clk 0:00:26]}  Kf6 {[%clk 0:00:33]} 36. Nxh6 {[%clk 0:00:26]}  Nc5 {[%clk 0:00:30]} 37. a5 {[%clk 0:00:17]}  b6 {[%clk 0:00:20]} 38. axb6 {[%clk 0:00:16]}  axb6 {[%clk 0:00:21]} 39. Ng4+ {[%clk 0:00:13]}  Kg7 {[%clk 0:00:21]} 40. Re7 {[%clk 0:00:13]}  Nd3 {[%clk 0:00:16]} 41. Rc7 {[%clk 0:00:10]}  c5 {[%clk 0:00:16]} 42. f5 {[%clk 0:00:10]}  Rc3 {[%clk 0:00:14]} 43. h4 {[%clk 0:00:10]}  b5 {[%clk 0:00:14]} 44. h5 {[%clk 0:00:11]}  b4 {[%clk 0:00:13]} 45. h6+ {[%clk 0:00:11]}  Kg8 {[%clk 0:00:13]} 46. Nf6+ {[%clk 0:00:11]}  Kf8 {[%clk 0:00:13]} 47. Rc8+ {[%clk 0:00:11]}  Ke7 {[%clk 0:00:13]} 48. Nd5+ {[%clk 0:00:12]}  Kd7 {[%clk 0:00:13]} 49. Nb6+ {[%clk 0:00:12]}  Kd6 {[%clk 0:00:13]} 50. h7 {[%clk 0:00:12]}  b3 {[%clk 0:00:13]} 51. h8=Q {[%clk 0:00:12]}  Rc1+ {[%clk 0:00:14]} 52. Kg2 {[%clk 0:00:12]}  Rc2+ {[%clk 0:00:13]} 53. Kf3 {[%clk 0:00:12]}  Ne5+ {[%clk 0:00:13]} 54. Kf4 {[%clk 0:00:11]}  Rf2+ {[%clk 0:00:09]} 55. Kg5 {[%clk 0:00:12]}  Nf3+ {[%clk 0:00:09]} 56. Kg4 {[%clk 0:00:11]}  Ne5+ {[%clk 0:00:09]} 57. Kh3 {[%clk 0:00:11]}  Rxf5 {[%clk 0:00:07]} 58. Qd8+ {[%clk 0:00:11]}  Ke6 {[%clk 0:00:06]} 59. Rxc5 {[%clk 0:00:11]}  Rh5+ {[%clk 0:00:04]} 60. Kg2 {[%clk 0:00:11]}  b2 {[%clk 0:00:04]} 61. Qd5+ {[%clk 0:00:11]}  Kf6 {[%clk 0:00:05]} 62. Qd6+ {[%clk 0:00:11]}  Kg7 {[%clk 0:00:05]} 63. Rb5 {[%clk 0:00:11]}  Nc4 {[%clk 0:00:00]} 64. Qd4+ {[%clk 0:00:09]} 1-0


[Site "https://www.chess.com"]

[Event "Titled Tuesday Blitz August 1 Early 2023"]
[White "Bauman_Guy"]
[Black "Sadykov, Ramil"]
[BlackFideId "24113590"]
[WhiteElo "2784"]
[BlackElo "2571"]
[Result "1/2-1/2"]
[Round "4"]
[TimeControl "180+1"]
[Date "2023.08.01"]
[WhiteClock "0:00:15"]
[BlackClock "0:00:08"]
[Board "55"]

1. e4 {[%clk 0:03:00]}  c5 {[%clk 0:02:59]} 2. Nf3 {[%clk 0:03:01]}  e6 {[%clk 0:03:00]} 3. d4 {[%clk 0:03:01]}  cxd4 {[%clk 0:03:01]} 4. Nxd4 {[%clk 0:03:02]}  Nf6 {[%clk 0:03:02]} 5. Nc3 {[%clk 0:03:02]}  Nc6 {[%clk 0:03:02]} 6. Ndb5 {[%clk 0:03:03]}  Bb4 {[%clk 0:03:00]} 7. a3 {[%clk 0:03:02]}  Bxc3+ {[%clk 0:03:00]} 8. Nxc3 {[%clk 0:03:03]}  d5 {[%clk 0:02:59]} 9. Bd3 {[%clk 0:03:03]}  dxe4 {[%clk 0:02:57]} 10. Nxe4 {[%clk 0:03:04]}  Nxe4 {[%clk 0:02:57]} 11. Bxe4 {[%clk 0:03:04]}  Qxd1+ {[%clk 0:02:58]} 12. Kxd1 {[%clk 0:03:05]}  Bd7 {[%clk 0:02:58]} 13. Be3 {[%clk 0:03:05]}  f5 {[%clk 0:02:56]} 14. Bf3 {[%clk 0:03:05]}  O-O-O {[%clk 0:02:55]} 15. Kc1 {[%clk 0:03:05]}  e5 {[%clk 0:02:40]} 16. g3 {[%clk 0:03:05]}  h6 {[%clk 0:02:11]} 17. h4 {[%clk 0:03:00]}  f4 {[%clk 0:02:04]} 18. Bd2 {[%clk 0:02:55]}  Nd4 {[%clk 0:01:59]} 19. Bd1 {[%clk 0:02:55]}  Rhe8 {[%clk 0:01:32]} 20. b3 {[%clk 0:02:49]}  Bc6 {[%clk 0:01:27]} 21. Re1 {[%clk 0:02:49]}  g5 {[%clk 0:01:09]} 22. Bh5 {[%clk 0:02:40]}  Re7 {[%clk 0:00:54]} 23. Bb4 {[%clk 0:02:39]}  Rc7 {[%clk 0:00:54]} 24. Ra2 {[%clk 0:01:34]}  fxg3 {[%clk 0:00:43]} 25. fxg3 {[%clk 0:01:32]}  gxh4 {[%clk 0:00:43]} 26. gxh4 {[%clk 0:01:32]}  Nxb3+ {[%clk 0:00:43]} 27. cxb3 {[%clk 0:01:31]}  Bf3+ {[%clk 0:00:43]} 28. Rc2 {[%clk 0:01:31]}  Bxh5 {[%clk 0:00:40]} 29. Rxe5 {[%clk 0:01:31]}  Rxc2+ {[%clk 0:00:31]} 30. Kxc2 {[%clk 0:01:31]}  Bf3 {[%clk 0:00:28]} 31. h5 {[%clk 0:01:26]}  Rd5 {[%clk 0:00:25]} 32. Re8+ {[%clk 0:01:26]}  Kc7 {[%clk 0:00:20]} 33. Re7+ {[%clk 0:01:25]}  Kc8 {[%clk 0:00:18]} 34. Bd2 {[%clk 0:01:22]}  Rxh5 {[%clk 0:00:16]} 35. b4 {[%clk 0:01:20]}  a6 {[%clk 0:00:15]} 36. Bf4 {[%clk 0:01:20]}  Bc6 {[%clk 0:00:13]} 37. Kc3 {[%clk 0:01:16]}  Rh4 {[%clk 0:00:11]} 38. Rf7 {[%clk 0:01:16]}  Kd8 {[%clk 0:00:09]} 39. Be5 {[%clk 0:01:12]}  Ke8 {[%clk 0:00:09]} 40. Rh7 {[%clk 0:01:12]}  h5 {[%clk 0:00:08]} 41. a4 {[%clk 0:01:10]}  Bxa4 {[%clk 0:00:07]} 42. Rxb7 {[%clk 0:01:10]}  Bb5 {[%clk 0:00:07]} 43. Rh7 {[%clk 0:01:03]}  Rc4+ {[%clk 0:00:05]} 44. Kb3 {[%clk 0:01:03]}  Rh4 {[%clk 0:00:05]} 45. Bd6 {[%clk 0:01:01]}  Rh3+ {[%clk 0:00:06]} 46. Kb2 {[%clk 0:01:01]}  Kd8 {[%clk 0:00:06]} 47. Bc5 {[%clk 0:00:55]}  Kc8 {[%clk 0:00:06]} 48. Kc1 {[%clk 0:00:54]}  Rh1+ {[%clk 0:00:03]} 49. Kd2 {[%clk 0:00:54]}  h4 {[%clk 0:00:04]} 50. Ke3 {[%clk 0:00:50]}  h3 {[%clk 0:00:03]} 51. Bd6 {[%clk 0:00:50]}  Bd7 {[%clk 0:00:03]} 52. Kd4 {[%clk 0:00:47]}  Rd1+ {[%clk 0:00:03]} 53. Kc5 {[%clk 0:00:48]}  Rc1+ {[%clk 0:00:03]} 54. Kd5 {[%clk 0:00:47]}  Rd1+ {[%clk 0:00:03]} 55. Ke5 {[%clk 0:00:47]}  Re1+ {[%clk 0:00:03]} 56. Kf4 {[%clk 0:00:47]}  Rf1+ {[%clk 0:00:03]} 57. Ke3 {[%clk 0:00:46]}  Rd1 {[%clk 0:00:04]} 58. Bf4 {[%clk 0:00:43]}  Kb7 {[%clk 0:00:03]} 59. Ke2 {[%clk 0:00:42]}  Rd5 {[%clk 0:00:04]} 60. Ke3 {[%clk 0:00:42]}  Kc6 {[%clk 0:00:04]} 61. Rh8 {[%clk 0:00:20]}  Kb5 {[%clk 0:00:04]} 62. Rb8+ {[%clk 0:00:20]}  Kc4 {[%clk 0:00:04]} 63. Ke4 {[%clk 0:00:20]}  Bc6 {[%clk 0:00:04]} 64. Ke3 {[%clk 0:00:20]}  Bb5 {[%clk 0:00:03]} 65. Rh8 {[%clk 0:00:17]}  Bd7 {[%clk 0:00:03]} 66. Rb8 {[%clk 0:00:16]}  Rh5 {[%clk 0:00:02]} 67. Bh2 {[%clk 0:00:16]}  Bb5 {[%clk 0:00:02]} 68. Rc8+ {[%clk 0:00:13]}  Kxb4 {[%clk 0:00:03]} 69. Bd6+ {[%clk 0:00:14]}  Kb3 {[%clk 0:00:03]} 70. Bh2 {[%clk 0:00:14]}  a5 {[%clk 0:00:03]} 71. Kd2 {[%clk 0:00:14]}  a4 {[%clk 0:00:04]} 72. Rc3+ {[%clk 0:00:14]}  Kb4 {[%clk 0:00:04]} 73. Bd6+ {[%clk 0:00:14]}  Ka5 {[%clk 0:00:03]} 74. Bh2 {[%clk 0:00:15]}  Kb4 {[%clk 0:00:04]} 75. Bd6+ {[%clk 0:00:15]}  Ka5 {[%clk 0:00:04]} 76. Bc7+ {[%clk 0:00:15]}  Ka6 {[%clk 0:00:04]} 77. Bh2 {[%clk 0:00:16]}  Kb6 {[%clk 0:00:04]} 78. Bc7+ {[%clk 0:00:15]}  Kb7 {[%clk 0:00:05]} 79. Bh2 {[%clk 0:00:16]}  Rg5 {[%clk 0:00:04]} 80. Rxh3 {[%clk 0:00:16]}  Rg2+ {[%clk 0:00:04]} 81. Kc1 {[%clk 0:00:16]}  Kc6 {[%clk 0:00:04]} 82. Be5 {[%clk 0:00:16]}  Kd5 {[%clk 0:00:05]} 83. Bb2 {[%clk 0:00:17]}  Bc4 {[%clk 0:00:05]} 84. Rh4 {[%clk 0:00:16]}  Bb3 {[%clk 0:00:05]} 85. Ba3 {[%clk 0:00:16]}  Rc2+ {[%clk 0:00:05]} 86. Kb1 {[%clk 0:00:15]}  Ra2 {[%clk 0:00:05]} 87. Bb2 {[%clk 0:00:16]}  Kc5 {[%clk 0:00:05]} 88. Rh3 {[%clk 0:00:14]}  Kb5 {[%clk 0:00:06]} 89. Rh4 {[%clk 0:00:14]}  Kc5 {[%clk 0:00:06]} 90. Rh3 {[%clk 0:00:13]}  Kb5 {[%clk 0:00:06]} 91. Rg3 {[%clk 0:00:14]}  Kc4 {[%clk 0:00:07]} 92. Rg4+ {[%clk 0:00:14]}  Kb5 {[%clk 0:00:07]} 93. Rg3 {[%clk 0:00:14]}  Kc4 {[%clk 0:00:07]} 94. Rg4+ {[%clk 0:00:15]}  Kb5 {[%clk 0:00:08]} 95. Rg3 {[%clk 0:00:15]} 1/2-1/2


[Site "https://www.chess.com"]

[Event "Titled Tuesday Blitz August 1 Early 2023"]
[White "Cnejev, Vladimir-Alexandru"]
[Black "Basso, Pier Luigi"]
[WhiteFideId "1260898"]
[BlackFideId "866970"]
[WhiteElo "2567"]
[BlackElo "2782"]
[Result "1/2-1/2"]
[Round "4"]
[TimeControl "180+1"]
[Date "2023.08.01"]
[WhiteClock "0:00:05"]
[BlackClock "0:01:36"]
[Board "56"]

1. e4 {[%clk 0:03:00]}  c6 {[%clk 0:02:56]} 2. d4 {[%clk 0:03:00]}  d5 {[%clk 0:02:57]} 3. exd5 {[%clk 0:03:01]}  cxd5 {[%clk 0:02:56]} 4. Bd3 {[%clk 0:03:02]}  Nc6 {[%clk 0:02:55]} 5. c3 {[%clk 0:03:02]}  Nf6 {[%clk 0:02:54]} 6. Bf4 {[%clk 0:03:02]}  Bg4 {[%clk 0:02:53]} 7. Qb3 {[%clk 0:03:02]}  Qb6 {[%clk 0:02:53]} 8. Nd2 {[%clk 0:03:01]}  e6 {[%clk 0:02:52]} 9. Ngf3 {[%clk 0:03:01]}  Be7 {[%clk 0:02:49]} 10. Ne5 {[%clk 0:02:57]}  Bh5 {[%clk 0:02:46]} 11. O-O {[%clk 0:02:50]}  Bg6 {[%clk 0:02:42]} 12. Nxg6 {[%clk 0:02:50]}  hxg6 {[%clk 0:02:43]} 13. Nf3 {[%clk 0:02:49]}  Nh5 {[%clk 0:02:38]} 14. Qxb6 {[%clk 0:02:21]}  axb6 {[%clk 0:02:39]} 15. Bc7 {[%clk 0:02:21]}  Bd8 {[%clk 0:02:38]} 16. Bxd8 {[%clk 0:02:21]}  Kxd8 {[%clk 0:02:36]} 17. g3 {[%clk 0:02:22]}  Nf6 {[%clk 0:02:34]} 18. a4 {[%clk 0:02:17]}  Ne8 {[%clk 0:02:34]} 19. Ne5 {[%clk 0:02:14]}  Nd6 {[%clk 0:02:35]} 20. b4 {[%clk 0:02:07]}  Ke7 {[%clk 0:02:35]} 21. Nxc6+ {[%clk 0:01:34]}  bxc6 {[%clk 0:02:36]} 22. a5 {[%clk 0:01:34]}  bxa5 {[%clk 0:02:29]} 23. bxa5 {[%clk 0:01:24]}  Rhb8 {[%clk 0:02:27]} 24. Ra3 {[%clk 0:01:20]}  Kd7 {[%clk 0:02:27]} 25. Rfa1 {[%clk 0:01:07]}  Kc7 {[%clk 0:02:27]} 26. Kf1 {[%clk 0:01:06]}  Rb2 {[%clk 0:02:26]} 27. R1a2 {[%clk 0:01:03]}  Rxa2 {[%clk 0:02:26]} 28. Rxa2 {[%clk 0:01:04]}  Rb8 {[%clk 0:02:19]} 29. Ke2 {[%clk 0:00:38]}  Rb3 {[%clk 0:02:16]} 30. Kd2 {[%clk 0:00:37]}  Kb8 {[%clk 0:02:12]} 31. Kc2 {[%clk 0:00:36]}  Rb7 {[%clk 0:02:13]} 32. h4 {[%clk 0:00:24]}  Ka7 {[%clk 0:02:11]} 33. Rb2 {[%clk 0:00:18]}  Nb5 {[%clk 0:02:06]} 34. Bxb5 {[%clk 0:00:09]}  cxb5 {[%clk 0:02:07]} 35. Kb3 {[%clk 0:00:08]}  Ka6 {[%clk 0:02:08]} 36. Kb4 {[%clk 0:00:03]}  Rc7 {[%clk 0:02:08]} 37. Ra2 {[%clk 0:00:04]}  Rc4+ {[%clk 0:02:09]} 38. Kb3 {[%clk 0:00:04]}  Rc8 {[%clk 0:02:03]} 39. f4 {[%clk 0:00:05]}  Rc7 {[%clk 0:02:03]} 40. Kb4 {[%clk 0:00:05]}  Rc4+ {[%clk 0:02:03]} 41. Kb3 {[%clk 0:00:05]}  Kb7 {[%clk 0:02:00]} 42. Re2 {[%clk 0:00:04]}  Ra4 {[%clk 0:01:58]} 43. g4 {[%clk 0:00:04]}  Rxa5 {[%clk 0:01:55]} 44. f5 {[%clk 0:00:05]}  gxf5 {[%clk 0:01:53]} 45. gxf5 {[%clk 0:00:05]}  Ra6 {[%clk 0:01:53]} 46. Rg2 {[%clk 0:00:05]}  exf5 {[%clk 0:01:53]} 47. Rxg7 {[%clk 0:00:06]}  Rf6 {[%clk 0:01:54]} 48. h5 {[%clk 0:00:04]}  Kc6 {[%clk 0:01:54]} 49. Kb4 {[%clk 0:00:04]}  f4 {[%clk 0:01:54]} 50. h6 {[%clk 0:00:05]}  Rxh6 {[%clk 0:01:50]} 51. Rxf7 {[%clk 0:00:05]}  Rh4 {[%clk 0:01:51]} 52. Rf6+ {[%clk 0:00:05]}  Kd7 {[%clk 0:01:51]} 53. Kxb5 {[%clk 0:00:05]}  Ke7 {[%clk 0:01:52]} 54. Rf5 {[%clk 0:00:04]}  Ke6 {[%clk 0:01:52]} 55. Re5+ {[%clk 0:00:04]}  Kd6 {[%clk 0:01:53]} 56. Rf5 {[%clk 0:00:04]}  Ke6 {[%clk 0:01:53]} 57. Re5+ {[%clk 0:00:04]}  Kf6 {[%clk 0:01:54]} 58. Rxd5 {[%clk 0:00:04]}  f3 {[%clk 0:01:55]} 59. Rd8 {[%clk 0:00:05]}  Rh7 {[%clk 0:01:55]} 60. Rf8+ {[%clk 0:00:03]}  Rf7 {[%clk 0:01:54]} 61. Ra8 {[%clk 0:00:04]}  Ke6 {[%clk 0:01:45]} 62. Ra1 {[%clk 0:00:04]}  Kd5 {[%clk 0:01:46]} 63. Rf1 {[%clk 0:00:03]}  f2 {[%clk 0:01:45]} 64. Kb4 {[%clk 0:00:04]}  Ke4 {[%clk 0:01:43]} 65. Kc5 {[%clk 0:00:04]}  Rf5+ {[%clk 0:01:35]} 66. Kd6 {[%clk 0:00:04]}  Rf6+ {[%clk 0:01:35]} 67. Ke7 {[%clk 0:00:04]}  Rf3 {[%clk 0:01:34]} 68. Ke6 {[%clk 0:00:04]}  Kd3 {[%clk 0:01:32]} 69. d5 {[%clk 0:00:04]}  Re3+ {[%clk 0:01:31]} 70. Kf7 {[%clk 0:00:03]}  Ke2 {[%clk 0:01:32]} 71. Rxf2+ {[%clk 0:00:01]}  Kxf2 {[%clk 0:01:33]} 72. d6 {[%clk 0:00:01]}  Rf3+ {[%clk 0:01:32]} 73. Ke6 {[%clk 0:00:01]}  Re3+ {[%clk 0:01:33]} 74. Kf7 {[%clk 0:00:02]}  Rxc3 {[%clk 0:01:33]} 75. d7 {[%clk 0:00:03]}  Rf3+ {[%clk 0:01:34]} 76. Ke7 {[%clk 0:00:03]}  Re3+ {[%clk 0:01:34]} 77. Kf7 {[%clk 0:00:04]}  Rd3 {[%clk 0:01:35]} 78. Ke7 {[%clk 0:00:05]}  Ke3 {[%clk 0:01:35]} 79. d8=Q {[%clk 0:00:04]}  Rxd8 {[%clk 0:01:36]} 80. Kxd8 {[%clk 0:00:05]} 1/2-1/2


[Site "https://www.chess.com"]

[Event "Titled Tuesday Blitz August 1 Early 2023"]
[White "Kuzmin, Roman"]
[Black "Dziththauly Ramadhan"]
[WhiteFideId "44134932"]
[BlackFideId "7105525"]
[WhiteElo "2564"]
[BlackElo "2776"]
[Result "1-0"]
[Round "4"]
[TimeControl "180+1"]
[Date "2023.08.01"]
[WhiteClock "0:00:12"]
[BlackClock "0:01:16"]
[Board "57"]

1. e4 {[%clk 0:03:00]}  c5 {[%clk 0:02:59]} 2. Nf3 {[%clk 0:03:01]}  d6 {[%clk 0:02:59]} 3. d4 {[%clk 0:03:02]}  cxd4 {[%clk 0:03:00]} 4. Nxd4 {[%clk 0:03:02]}  Nf6 {[%clk 0:03:00]} 5. Nc3 {[%clk 0:03:03]}  a6 {[%clk 0:02:59]} 6. Be2 {[%clk 0:03:03]}  e5 {[%clk 0:02:59]} 7. Nb3 {[%clk 0:03:04]}  Be7 {[%clk 0:03:00]} 8. Be3 {[%clk 0:03:04]}  Be6 {[%clk 0:02:59]} 9. O-O {[%clk 0:03:05]}  Nbd7 {[%clk 0:02:59]} 10. a4 {[%clk 0:03:00]}  O-O {[%clk 0:02:58]} 11. a5 {[%clk 0:02:59]}  Qc7 {[%clk 0:02:58]} 12. Qd2 {[%clk 0:02:54]}  Rac8 {[%clk 0:02:58]} 13. Bf3 {[%clk 0:02:46]}  Rfd8 {[%clk 0:02:55]} 14. Rfd1 {[%clk 0:02:42]}  Nc5 {[%clk 0:02:47]} 15. Nxc5 {[%clk 0:02:29]}  dxc5 {[%clk 0:02:48]} 16. Qe1 {[%clk 0:02:28]}  h6 {[%clk 0:02:30]} 17. Na4 {[%clk 0:02:20]}  Rxd1 {[%clk 0:02:07]} 18. Rxd1 {[%clk 0:02:21]}  Bd7 {[%clk 0:02:07]} 19. Nb6 {[%clk 0:02:19]}  Rd8 {[%clk 0:02:07]} 20. c4 {[%clk 0:02:15]}  Bc6 {[%clk 0:02:04]} 21. Nd5 {[%clk 0:02:12]}  Bxd5 {[%clk 0:02:03]} 22. cxd5 {[%clk 0:02:11]}  b6 {[%clk 0:02:01]} 23. Ra1 {[%clk 0:00:56]}  Rb8 {[%clk 0:01:55]} 24. Bd2 {[%clk 0:00:37]}  b5 {[%clk 0:01:53]} 25. Rc1 {[%clk 0:00:36]}  Nd7 {[%clk 0:01:51]} 26. Be2 {[%clk 0:00:31]}  c4 {[%clk 0:01:51]} 27. b3 {[%clk 0:00:27]}  Nc5 {[%clk 0:01:49]} 28. bxc4 {[%clk 0:00:26]}  b4 {[%clk 0:01:46]} 29. Bxb4 {[%clk 0:00:24]}  Nb3 {[%clk 0:01:44]} 30. Bxe7 {[%clk 0:00:13]}  Nxc1 {[%clk 0:01:43]} 31. Qxc1 {[%clk 0:00:14]}  Qxe7 {[%clk 0:01:43]} 32. c5 {[%clk 0:00:15]}  Rc8 {[%clk 0:01:39]} 33. c6 {[%clk 0:00:15]}  Qb4 {[%clk 0:01:40]} 34. Bxa6 {[%clk 0:00:14]}  Rc7 {[%clk 0:01:36]} 35. g3 {[%clk 0:00:12]}  Kf8 {[%clk 0:01:28]} 36. Qc4 {[%clk 0:00:09]}  Qxc4 {[%clk 0:01:22]} 37. Bxc4 {[%clk 0:00:10]}  Ke7 {[%clk 0:01:23]} 38. Ba6 {[%clk 0:00:11]}  Kd6 {[%clk 0:01:19]} 39. Bb7 {[%clk 0:00:11]}  Kc5 {[%clk 0:01:17]} 40. a6 {[%clk 0:00:11]}  Kb6 {[%clk 0:01:17]} 41. d6 {[%clk 0:00:11]}  Rxc6 {[%clk 0:01:18]} 42. Bxc6 {[%clk 0:00:12]}  Kxc6 {[%clk 0:01:16]} 43. a7 {[%clk 0:00:12]} 1-0


[Site "https://www.chess.com"]